[Event "*** Titled Tuesday Blitz"]
[Site "Chess.com"]
[Date "2019.09.03"]
[Round "10"]
[White "NormWeinstein"]
[Black "SelfishShellfish"]
[Result "0-1"]
[WhiteElo "2392"]
[BlackElo "2227"]
[TimeControl "180+2"]
[EndTime "17:19:48 PDT"]
[Termination "SelfishShellfish won on time"]

1. e4 {[%clk 0:03:01.9]} 1... c5 {[%clk 0:02:53.9]} 2. Nf3 {[%clk 0:03:02.7]}
2... d6 {[%clk 0:02:54.5]} 3. Nc3 {[%clk 0:03:04.1]} 3... a6 {[%clk 0:02:47.3]}
4. g3 {[%clk 0:03:03]} 4... Nc6 {[%clk 0:02:42.9]} 5. d4 {[%clk 0:03:02.7]} 5...
cxd4 {[%clk 0:02:40.1]} 6. Nxd4 {[%clk 0:03:04]} 6... Bd7 {[%clk 0:02:41.7]} 7.
Bg2 {[%clk 0:03:04.5]} 7... Nf6 {[%clk 0:02:41.8]} 8. O-O {[%clk 0:03:04.3]}
8... e6 {[%clk 0:02:31.4]} 9. Re1 {[%clk 0:03:02.5]} 9... Be7 {[%clk 0:02:32.1]}
10. Nxc6 {[%clk 0:03:03]} 10... Bxc6 {[%clk 0:02:33.1]} 11. a4 {[%clk
0:03:04.3]} 11... O-O {[%clk 0:02:33.6]} 12. a5 {[%clk 0:03:05]} 12... Rc8
{[%clk 0:02:28.5]} 13. Be3 {[%clk 0:03:05.5]} 13... Qc7 {[%clk 0:02:24.6]} 14.
Bb6 {[%clk 0:02:59.5]} 14... Qb8 {[%clk 0:02:25.5]} 15. Nd5 {[%clk 0:02:55.7]}
15... Bxd5 {[%clk 0:02:09.2]} 16. exd5 {[%clk 0:02:55.9]} 16... e5 {[%clk
0:02:11.1]} 17. Qe2 {[%clk 0:02:38.7]} 17... Nd7 {[%clk 0:02:08.7]} 18. Be3
{[%clk 0:02:39.1]} 18... f5 {[%clk 0:02:09.1]} 19. f4 {[%clk 0:02:31.6]} 19...
Bf6 {[%clk 0:01:53.3]} 20. c4 {[%clk 0:02:25.8]} 20... e4 {[%clk 0:01:45.8]} 21.
Rab1 {[%clk 0:01:38.1]} 21... Nc5 {[%clk 0:01:36.7]} 22. Bxc5 {[%clk 0:01:33.9]}
22... dxc5 {[%clk 0:01:28.7]} 23. Kh1 {[%clk 0:01:29.6]} 23... b6 {[%clk
0:01:10.2]} 24. b4 {[%clk 0:01:24.1]} 24... Bc3 {[%clk 0:01:01]} 25. bxc5 {[%clk
0:01:13.3]} 25... Bxe1 {[%clk 0:00:55.2]} 26. Rxb6 {[%clk 0:01:02.9]} 26... Qc7
{[%clk 0:00:55.2]} 27. Qxe1 {[%clk 0:01:03.7]} 27... Qxc5 {[%clk 0:00:56.7]} 28.
Bf1 {[%clk 0:01:00.3]} 28... Rb8 {[%clk 0:00:56.5]} 29. Qb1 {[%clk 0:00:59.2]}
29... Rxb6 {[%clk 0:00:54.5]} 30. Qxb6 {[%clk 0:00:57.9]} 30... Qa3 {[%clk
0:00:47.4]} 31. Qe6+ {[%clk 0:00:41]} 31... Kh8 {[%clk 0:00:47.9]} 32. d6 {[%clk
0:00:41.3]} 32... Qf3+ {[%clk 0:00:47.4]} 33. Kg1 {[%clk 0:00:42.3]} 33... e3
{[%clk 0:00:48.6]} 34. Bd3 {[%clk 0:00:18.5]} 34... Qf2+ {[%clk 0:00:43.5]} 35.
Kh1 {[%clk 0:00:18.3]} 35... Qe1+ {[%clk 0:00:45]} 36. Kg2 {[%clk 0:00:15.9]}
36... Qd2+ {[%clk 0:00:46.2]} 37. Kh3 {[%clk 0:00:14.9]} 37... Qxd3 {[%clk
0:00:47]} 38. Qe7 {[%clk 0:00:14.1]} 38... Rg8 {[%clk 0:00:42.8]} 39. d7 {[%clk
0:00:14.5]} 39... e2 {[%clk 0:00:43.2]} 40. c5 {[%clk 0:00:13]} 40... Qe4 {[%clk
0:00:42.5]} 41. d8=Q {[%clk 0:00:07.7]} 41... e1=Q {[%clk 0:00:36.4]} 42. Qef8
{[%clk 0:00:03.5]} 42... Qf1+ {[%clk 0:00:27]} 43. Kh4 {[%clk 0:00:03.8]} 43...
g5+ {[%clk 0:00:28.5]} 0-1

[Event "*** Titled Tuesday Blitz"]
[Site "Chess.com"]
[Date "2019.09.03"]
[Round "10"]
[White "vova-79"]
[Black "NicoChasin"]
[Result "0-1"]
[WhiteElo "2404"]
[BlackElo "2484"]
[TimeControl "180+2"]
[EndTime "17:19:49 PDT"]
[Termination "NicoChasin won by resignation"]

1. d4 {[%clk 0:03:01.9]} 1... Nf6 {[%clk 0:02:35.1]} 2. c4 {[%clk 0:03:01.5]}
2... e6 {[%clk 0:02:36]} 3. Nc3 {[%clk 0:03:01]} 3... Bb4 {[%clk 0:02:35.6]} 4.
e3 {[%clk 0:03:01]} 4... O-O {[%clk 0:02:34.4]} 5. Ne2 {[%clk 0:03:02.2]} 5...
c6 {[%clk 0:02:35.4]} 6. a3 {[%clk 0:03:03]} 6... Ba5 {[%clk 0:02:33.6]} 7. Qc2
{[%clk 0:03:03.3]} 7... d5 {[%clk 0:02:33.4]} 8. Ng3 {[%clk 0:03:04.5]} 8...
Nbd7 {[%clk 0:02:31.8]} 9. Be2 {[%clk 0:03:03.2]} 9... dxc4 {[%clk 0:02:28.3]}
10. Bxc4 {[%clk 0:03:02.2]} 10... e5 {[%clk 0:02:29.7]} 11. O-O {[%clk
0:03:00.9]} 11... exd4 {[%clk 0:02:30.5]} 12. exd4 {[%clk 0:03:02.8]} 12... Bc7
{[%clk 0:02:30.6]} 13. Ba2 {[%clk 0:03:02.4]} 13... h6 {[%clk 0:02:31]} 14. d5
{[%clk 0:02:56.5]} 14... cxd5 {[%clk 0:02:30.9]} 15. Nxd5 {[%clk 0:02:52.6]}
15... Nxd5 {[%clk 0:02:31.2]} 16. Bxd5 {[%clk 0:02:53]} 16... Nf6 {[%clk
0:02:31.9]} 17. Bf3 {[%clk 0:02:50.5]} 17... Be6 {[%clk 0:02:27.2]} 18. Rd1
{[%clk 0:02:29.1]} 18... Qc8 {[%clk 0:02:26.6]} 19. Be3 {[%clk 0:02:25.8]} 19...
Ng4 {[%clk 0:02:22.6]} 20. Rdc1 {[%clk 0:01:14.2]} 20... Bxg3 {[%clk 0:02:16.9]}
21. Qxc8 {[%clk 0:01:13.6]} 21... Bxh2+ {[%clk 0:01:59.7]} 22. Kh1 {[%clk
0:01:13.9]} 22... Rfxc8 {[%clk 0:01:50.2]} 23. Bxg4 {[%clk 0:01:09.2]} 23... Be5
{[%clk 0:01:50.5]} 24. Bxe6 {[%clk 0:00:59.4]} 24... fxe6 {[%clk 0:01:52.4]} 25.
Rab1 {[%clk 0:00:56.7]} 25... Rxc1+ {[%clk 0:01:51]} 26. Bxc1 {[%clk 0:00:53.6]}
26... Rc8 {[%clk 0:01:51]} 27. Be3 {[%clk 0:00:53.9]} 27... b6 {[%clk 0:01:52]}
28. Rc1 {[%clk 0:00:47.7]} 28... Rxc1+ {[%clk 0:01:48.6]} 29. Bxc1 {[%clk
0:00:49.6]} 29... Bd4 {[%clk 0:01:50.5]} 30. Kg1 {[%clk 0:00:47.5]} 30... e5
{[%clk 0:01:50.8]} 31. Kf1 {[%clk 0:00:47]} 31... Kf7 {[%clk 0:01:51.8]} 32. Ke2
{[%clk 0:00:43.6]} 32... Ke6 {[%clk 0:01:52.3]} 33. Kd3 {[%clk 0:00:40.4]} 33...
Bxf2 {[%clk 0:01:52.7]} 34. Ke4 {[%clk 0:00:39.6]} 34... Bd4 {[%clk 0:01:52.1]}
35. b3 {[%clk 0:00:39.2]} 35... Bc5 {[%clk 0:01:51]} 36. a4 {[%clk 0:00:39]}
36... a6 {[%clk 0:01:50.1]} 37. Bd2 {[%clk 0:00:31.6]} 37... b5 {[%clk
0:01:50.4]} 38. axb5 {[%clk 0:00:32.2]} 38... axb5 {[%clk 0:01:52.3]} 39. Bc1
{[%clk 0:00:32]} 39... h5 {[%clk 0:01:52.1]} 40. Bg5 {[%clk 0:00:30.4]} 40...
Bf2 {[%clk 0:01:46.1]} 41. Bd2 {[%clk 0:00:23.2]} 41... Bh4 {[%clk 0:01:44.6]}
42. Bc3 {[%clk 0:00:23]} 42... Bf6 {[%clk 0:01:44.5]} 43. Bd2 {[%clk 0:00:23]}
43... g6 {[%clk 0:01:41.1]} 44. Be1 {[%clk 0:00:22]} 44... g5 {[%clk 0:01:39.5]}
45. Bf2 {[%clk 0:00:21]} 45... g4 {[%clk 0:01:39.1]} 46. g3 {[%clk 0:00:21.3]}
46... Be7 {[%clk 0:01:24.3]} 47. Be1 {[%clk 0:00:18.1]} 47... Bc5 {[%clk
0:01:24.2]} 48. Bc3 {[%clk 0:00:18.2]} 48... Bd4 {[%clk 0:01:21.7]} 49. Be1
{[%clk 0:00:18.1]} 49... Kf6 {[%clk 0:01:19.1]} 50. Ba5 {[%clk 0:00:14.2]} 50...
Bf2 {[%clk 0:01:18.7]} 51. Bd8+ {[%clk 0:00:13.2]} 51... Ke6 {[%clk 0:01:18.9]}
52. Bh4 {[%clk 0:00:15.1]} 52... Be1 {[%clk 0:01:19.3]} 53. Ke3 {[%clk
0:00:13.3]} 53... Kd5 {[%clk 0:01:20.1]} 54. Ke2 {[%clk 0:00:13.1]} 54... Bc3
{[%clk 0:01:20]} 0-1

[Event "*** Titled Tuesday Blitz"]
[Site "Chess.com"]
[Date "2019.09.03"]
[Round "10"]
[White "Witik"]
[Black "Lunaticx"]
[Result "0-1"]
[WhiteElo "2572"]
[BlackElo "2834"]
[TimeControl "180+2"]
[EndTime "17:20:03 PDT"]
[Termination "Lunaticx won by resignation"]

1. d4 {[%clk 0:03:01.9]} 1... Nf6 {[%clk 0:03:00.5]} 2. Bf4 {[%clk 0:03:01.6]}
2... d5 {[%clk 0:03:00.7]} 3. e3 {[%clk 0:03:02.9]} 3... e6 {[%clk 0:03:00.8]}
4. Nd2 {[%clk 0:03:03.8]} 4... Bd6 {[%clk 0:03:02.3]} 5. Bg3 {[%clk 0:03:05.2]}
5... c5 {[%clk 0:03:00.8]} 6. Ngf3 {[%clk 0:03:02.2]} 6... Qc7 {[%clk 0:02:58]}
7. Bxd6 {[%clk 0:03:00.4]} 7... Qxd6 {[%clk 0:02:58.7]} 8. Ne5 {[%clk
0:03:02.3]} 8... Nc6 {[%clk 0:02:54.5]} 9. Bb5 {[%clk 0:03:00.3]} 9... O-O
{[%clk 0:02:55.1]} 10. Bxc6 {[%clk 0:02:44.6]} 10... bxc6 {[%clk 0:02:54.3]} 11.
Nb3 {[%clk 0:02:45.9]} 11... cxd4 {[%clk 0:02:54.9]} 12. exd4 {[%clk 0:02:47.1]}
12... Ne4 {[%clk 0:02:40.3]} 13. f3 {[%clk 0:02:12.5]} 13... f6 {[%clk
0:02:40.3]} 14. Nd3 {[%clk 0:02:12.1]} 14... Ng5 {[%clk 0:02:39.8]} 15. Qd2
{[%clk 0:02:00.1]} 15... Nf7 {[%clk 0:02:31.8]} 16. O-O {[%clk 0:01:42.2]} 16...
e5 {[%clk 0:02:32.6]} 17. c3 {[%clk 0:01:43]} 17... Bf5 {[%clk 0:02:32.2]} 18.
Nbc5 {[%clk 0:01:39]} 18... Rfe8 {[%clk 0:02:32.2]} 19. Rfe1 {[%clk 0:01:38.8]}
19... Rab8 {[%clk 0:02:31.2]} 20. b4 {[%clk 0:01:30.7]} 20... Re7 {[%clk
0:02:17.8]} 21. Re3 {[%clk 0:01:22.5]} 21... Rbe8 {[%clk 0:02:15.8]} 22. Rae1
{[%clk 0:01:22.8]} 22... h5 {[%clk 0:02:16.3]} 23. a3 {[%clk 0:01:15.9]} 23...
Qc7 {[%clk 0:02:11.8]} 24. Qf2 {[%clk 0:01:14]} 24... a5 {[%clk 0:02:11.1]} 25.
Qg3 {[%clk 0:01:11.2]} 25... axb4 {[%clk 0:02:11.3]} 26. axb4 {[%clk 0:00:55.9]}
26... Qb8 {[%clk 0:01:59.4]} 27. h4 {[%clk 0:00:54.1]} 27... Nd6 {[%clk
0:01:49.8]} 28. Kh2 {[%clk 0:00:40.6]} 28... Nc4 {[%clk 0:01:49.9]} 29. R3e2
{[%clk 0:00:42]} 29... Kh7 {[%clk 0:01:40.2]} 30. Nb2 {[%clk 0:00:24]} 30... Nb6
{[%clk 0:01:29.7]} 31. Nbd3 {[%clk 0:00:24.6]} 31... Bxd3 {[%clk 0:01:14.1]} 32.
Nxd3 {[%clk 0:00:25.5]} 32... Nc4 {[%clk 0:01:15.8]} 33. dxe5 {[%clk 0:00:23]}
33... fxe5 {[%clk 0:01:11.9]} 34. Nc5 {[%clk 0:00:21]} 34... Qd6 {[%clk
0:01:11.4]} 35. Qg5 {[%clk 0:00:22]} 35... Qg6 {[%clk 0:01:01.7]} 36. Qxg6+
{[%clk 0:00:14.9]} 36... Kxg6 {[%clk 0:01:03.6]} 37. Kg3 {[%clk 0:00:15.4]}
37... Nd6 {[%clk 0:00:59.9]} 38. Ra1 {[%clk 0:00:15.5]} 38... Nf5+ {[%clk
0:00:53.9]} 39. Kh3 {[%clk 0:00:16.6]} 39... e4 {[%clk 0:00:55.1]} 40. Ra6
{[%clk 0:00:16.7]} 40... exf3 {[%clk 0:00:51.2]} 41. Rxc6+ {[%clk 0:00:17.4]}
41... Kh7 {[%clk 0:00:49.7]} 42. Rxe7 {[%clk 0:00:18.4]} 42... f2 {[%clk
0:00:32.7]} 43. Ne6 {[%clk 0:00:15.4]} 43... Nxe7 {[%clk 0:00:25.6]} 44. Ng5+
{[%clk 0:00:16.4]} 44... Kg8 {[%clk 0:00:26.3]} 0-1

[Event "*** Titled Tuesday Blitz"]
[Site "Chess.com"]
[Date "2019.09.03"]
[Round "10"]
[White "DishonorOnYourCow"]
[Black "PchelkinVK"]
[Result "1/2-1/2"]
[WhiteElo "2250"]
[BlackElo "2472"]
[TimeControl "180+2"]
[EndTime "17:20:05 PDT"]
[Termination "Game drawn by repetition"]

1. d4 {[%clk 0:03:01.9]} 1... e5 {[%clk 0:02:54]} 2. dxe5 {[%clk 0:02:59.8]}
2... d6 {[%clk 0:02:55.2]} 3. exd6 {[%clk 0:02:59.7]} 3... Bxd6 {[%clk
0:02:57.1]} 4. e4 {[%clk 0:02:55.6]} 4... Nc6 {[%clk 0:02:56.4]} 5. Nc3 {[%clk
0:02:55.8]} 5... Qe7 {[%clk 0:02:56.3]} 6. Bd3 {[%clk 0:02:54.5]} 6... Be6
{[%clk 0:02:45.2]} 7. Nf3 {[%clk 0:02:47.6]} 7... O-O-O {[%clk 0:02:46.6]} 8.
O-O {[%clk 0:02:46.1]} 8... Bg4 {[%clk 0:02:44.7]} 9. Nd5 {[%clk 0:02:41.9]}
9... Qe8 {[%clk 0:02:39.5]} 10. h3 {[%clk 0:02:40.1]} 10... h5 {[%clk 0:02:15]}
11. Be3 {[%clk 0:02:10.7]} 11... Kb8 {[%clk 0:01:57.4]} 12. b4 {[%clk
0:02:04.3]} 12... Nf6 {[%clk 0:01:47.7]} 13. b5 {[%clk 0:02:01.7]} 13... Ne5
{[%clk 0:01:29.9]} 14. Be2 {[%clk 0:02:02.1]} 14... Nxf3+ {[%clk 0:00:53.8]} 15.
Bxf3 {[%clk 0:02:01.9]} 15... Nxd5 {[%clk 0:00:55.3]} 16. exd5 {[%clk
0:01:55.1]} 16... Qe5 {[%clk 0:00:55.6]} 17. g3 {[%clk 0:01:45.7]} 17... Bxh3
{[%clk 0:00:56.8]} 18. Re1 {[%clk 0:01:37.6]} 18... Qf5 {[%clk 0:00:43.8]} 19.
Be4 {[%clk 0:01:23.4]} 19... Qd7 {[%clk 0:00:36.9]} 20. Qd4 {[%clk 0:01:23.5]}
20... b6 {[%clk 0:00:36.4]} 21. a4 {[%clk 0:00:39.6]} 21... h4 {[%clk
0:00:37.2]} 22. a5 {[%clk 0:00:37.4]} 22... hxg3 {[%clk 0:00:38]} 23. fxg3
{[%clk 0:00:38.3]} 23... Qg4 {[%clk 0:00:28.9]} 24. Bf2 {[%clk 0:00:18.2]} 24...
Bxg3 {[%clk 0:00:28.9]} 25. Bg2 {[%clk 0:00:07.8]} 25... Bf4 {[%clk 0:00:16.7]}
26. Qe4 {[%clk 0:00:05.2]} 26... Bxg2 {[%clk 0:00:13.2]} 27. Qxg2 {[%clk
0:00:05.9]} 27... Qf5 {[%clk 0:00:11.8]} 28. Bg3 {[%clk 0:00:04.5]} 28... Bxg3
{[%clk 0:00:10.9]} 29. Qxg3 {[%clk 0:00:05.8]} 29... Qxd5 {[%clk 0:00:11.7]} 30.
Re7 {[%clk 0:00:06.4]} 30... Qc5+ {[%clk 0:00:12.3]} 31. Qf2 {[%clk 0:00:05.6]}
31... Qxe7 {[%clk 0:00:11.8]} 32. axb6 {[%clk 0:00:06.7]} 32... axb6 {[%clk
0:00:12.7]} 33. Qg2 {[%clk 0:00:07.1]} 33... c6 {[%clk 0:00:09.7]} 34. Qg3+
{[%clk 0:00:07.4]} 34... Qc7 {[%clk 0:00:10.6]} 35. Ra8+ {[%clk 0:00:07.2]}
35... Kxa8 {[%clk 0:00:08.1]} 36. Qxc7 {[%clk 0:00:08.1]} 36... cxb5 {[%clk
0:00:08.4]} 37. Qxb6 {[%clk 0:00:08.6]} 37... Rde8 {[%clk 0:00:06.4]} 38. Qa6+
{[%clk 0:00:09.3]} 38... Kb8 {[%clk 0:00:07.5]} 39. Qxb5+ {[%clk 0:00:10.7]}
39... Kc8 {[%clk 0:00:09.4]} 40. Qc6+ {[%clk 0:00:11.9]} 40... Kd8 {[%clk
0:00:10.8]} 41. Qd6+ {[%clk 0:00:13.2]} 41... Kc8 {[%clk 0:00:12]} 42. Qc6+
{[%clk 0:00:14.4]} 42... Kd8 {[%clk 0:00:13.1]} 43. Qd6+ {[%clk 0:00:15.7]}
43... Kc8 {[%clk 0:00:13.9]} 44. Qc6+ {[%clk 0:00:16.9]} 1/2-1/2

[Event "*** Titled Tuesday Blitz"]
[Site "Chess.com"]
[Date "2019.09.03"]
[Round "10"]
[White "StephenDedalus83"]
[Black "iturrizaga"]
[Result "0-1"]
[WhiteElo "2827"]
[BlackElo "2945"]
[TimeControl "180+2"]
[EndTime "17:20:07 PDT"]
[Termination "iturrizaga won by resignation"]

1. g3 {[%clk 0:03:01.7]} 1... g6 {[%clk 0:03:00.6]} 2. Bg2 {[%clk 0:03:02.5]}
2... Bg7 {[%clk 0:03:02.5]} 3. d3 {[%clk 0:03:03.2]} 3... c5 {[%clk 0:03:01.8]}
4. e4 {[%clk 0:03:03.8]} 4... Nc6 {[%clk 0:03:02.5]} 5. f4 {[%clk 0:03:04.9]}
5... d6 {[%clk 0:03:01.8]} 6. Nf3 {[%clk 0:03:06.4]} 6... e5 {[%clk 0:03:02.7]}
7. O-O {[%clk 0:03:06]} 7... Nge7 {[%clk 0:03:03.9]} 8. Nc3 {[%clk 0:02:57.8]}
8... O-O {[%clk 0:03:03.8]} 9. Be3 {[%clk 0:02:57.5]} 9... exf4 {[%clk
0:03:03.7]} 10. gxf4 {[%clk 0:02:57.7]} 10... f5 {[%clk 0:03:02.9]} 11. Qd2
{[%clk 0:02:58.6]} 11... Nd4 {[%clk 0:03:00.7]} 12. Rae1 {[%clk 0:02:58.1]}
12... h6 {[%clk 0:02:57.7]} 13. Nd1 {[%clk 0:02:57.9]} 13... Kh7 {[%clk
0:02:57.7]} 14. c3 {[%clk 0:02:35]} 14... Ndc6 {[%clk 0:02:58.3]} 15. Nf2 {[%clk
0:02:34.2]} 15... Be6 {[%clk 0:02:46.2]} 16. a3 {[%clk 0:02:32.8]} 16... Qd7
{[%clk 0:02:45.4]} 17. Kh1 {[%clk 0:02:25.3]} 17... Rae8 {[%clk 0:02:45.1]} 18.
Rg1 {[%clk 0:02:25.8]} 18... b6 {[%clk 0:02:39.9]} 19. b4 {[%clk 0:02:23.1]}
19... Ng8 {[%clk 0:01:59.9]} 20. Nh4 {[%clk 0:02:19.5]} 20... Nce7 {[%clk
0:01:53.7]} 21. h3 {[%clk 0:02:04.3]} 21... Nf6 {[%clk 0:01:51.7]} 22. Kh2
{[%clk 0:02:05]} 22... Nh5 {[%clk 0:01:22.1]} 23. Qd1 {[%clk 0:01:54.3]} 23...
Bxc3 {[%clk 0:01:19.8]} 24. Ref1 {[%clk 0:01:35.5]} 24... Ng7 {[%clk 0:01:08.8]}
25. bxc5 {[%clk 0:01:34]} 25... bxc5 {[%clk 0:01:08.8]} 26. Nh1 {[%clk
0:01:19.2]} 26... Bf6 {[%clk 0:01:06.2]} 27. Nf3 {[%clk 0:01:18.5]} 27... Nh5
{[%clk 0:01:05.2]} 28. e5 {[%clk 0:01:15.2]} 28... Bg7 {[%clk 0:01:06.1]} 29.
Nh4 {[%clk 0:01:10.8]} 29... dxe5 {[%clk 0:01:04.7]} 30. Nxg6 {[%clk 0:01:09.3]}
30... Nxg6 {[%clk 0:01:06.4]} 31. Qxh5 {[%clk 0:01:09.5]} 31... Bf7 {[%clk
0:00:58]} 32. Ng3 {[%clk 0:00:58.9]} 32... exf4 {[%clk 0:00:54.4]} 33. Nxf5
{[%clk 0:00:59]} 33... fxe3 {[%clk 0:00:51.7]} 34. Be4 {[%clk 0:00:55.9]} 34...
Re5 {[%clk 0:00:30.2]} 35. Qg4 {[%clk 0:00:52.6]} 35... Rxe4 {[%clk 0:00:23.4]}
36. dxe4 {[%clk 0:00:52.6]} 36... Be5+ {[%clk 0:00:23.6]} 37. Kh1 {[%clk
0:00:52.9]} 37... Qd3 {[%clk 0:00:16.2]} 38. Rd1 {[%clk 0:00:48.8]} 38... Qc2
{[%clk 0:00:13.2]} 39. Rg2 {[%clk 0:00:48.7]} 39... e2 {[%clk 0:00:14.6]} 40.
Rdg1 {[%clk 0:00:47.7]} 40... Qd3 {[%clk 0:00:11.1]} 41. Qh5 {[%clk 0:00:44]}
41... Bf4 {[%clk 0:00:11.4]} 42. Rxe2 {[%clk 0:00:26]} 42... Ne5 {[%clk
0:00:12.5]} 43. Rg7+ {[%clk 0:00:21.9]} 43... Kh8 {[%clk 0:00:13.9]} 44. Rxf7
{[%clk 0:00:23]} 44... Nxf7 {[%clk 0:00:14.5]} 45. Qg6 {[%clk 0:00:23.7]} 45...
Qxh3+ {[%clk 0:00:14]} 46. Kg1 {[%clk 0:00:24.7]} 46... Rg8 {[%clk 0:00:15.2]}
0-1

[Event "*** Titled Tuesday Blitz"]
[Site "Chess.com"]
[Date "2019.09.03"]
[Round "10"]
[White "SanchezKelvin"]
[Black "nocnypako"]
[Result "1-0"]
[WhiteElo "2443"]
[BlackElo "2574"]
[TimeControl "180+2"]
[EndTime "17:20:07 PDT"]
[Termination "SanchezKelvin won on time"]

1. d4 {[%clk 0:03:01.9]} 1... Nf6 {[%clk 0:02:55.6]} 2. c4 {[%clk 0:03:01.6]}
2... g6 {[%clk 0:02:45]} 3. Nc3 {[%clk 0:02:57]} 3... d5 {[%clk 0:02:31.7]} 4.
Nf3 {[%clk 0:02:55.8]} 4... Bg7 {[%clk 0:02:28.6]} 5. Bg5 {[%clk 0:02:55.3]}
5... Ne4 {[%clk 0:02:28.8]} 6. cxd5 {[%clk 0:02:55.6]} 6... Nxg5 {[%clk
0:02:25.2]} 7. Nxg5 {[%clk 0:02:57.2]} 7... O-O {[%clk 0:02:22.3]} 8. Nf3 {[%clk
0:02:56.3]} 8... c6 {[%clk 0:02:23.7]} 9. dxc6 {[%clk 0:02:56.9]} 9... Nxc6
{[%clk 0:02:25.6]} 10. e3 {[%clk 0:02:58.2]} 10... e5 {[%clk 0:02:26.5]} 11.
dxe5 {[%clk 0:02:59]} 11... Qa5 {[%clk 0:02:19.6]} 12. Qa4 {[%clk 0:02:59.4]}
12... Qxa4 {[%clk 0:02:13.8]} 13. Nxa4 {[%clk 0:02:58.9]} 13... Nxe5 {[%clk
0:02:15.7]} 14. Nd4 {[%clk 0:02:59]} 14... Bd7 {[%clk 0:02:12.5]} 15. Nc3 {[%clk
0:02:56]} 15... Rac8 {[%clk 0:01:55.1]} 16. Be2 {[%clk 0:02:53.5]} 16... Nc4
{[%clk 0:01:55.8]} 17. O-O-O {[%clk 0:02:43.1]} 17... Rfe8 {[%clk 0:01:37]} 18.
Kb1 {[%clk 0:02:21.8]} 18... a6 {[%clk 0:01:22.9]} 19. Bf3 {[%clk 0:02:11]}
19... Na5 {[%clk 0:01:09.3]} 20. Nd5 {[%clk 0:02:02.4]} 20... Bxd4 {[%clk
0:00:08.6]} 21. Rxd4 {[%clk 0:01:54.5]} 21... Bf5+ {[%clk 0:00:09.5]} 22. e4
{[%clk 0:01:52.7]} 22... Nc6 {[%clk 0:00:10.3]} 23. Rd2 {[%clk 0:01:44.5]} 23...
Be6 {[%clk 0:00:05.9]} 24. Nf6+ {[%clk 0:01:43.1]} 24... Kg7 {[%clk 0:00:07.1]}
25. Nxe8+ {[%clk 0:01:45]} 25... Rxe8 {[%clk 0:00:08.3]} 26. e5 {[%clk
0:01:39.6]} 26... Nxe5 {[%clk 0:00:07.6]} 27. Bxb7 {[%clk 0:01:34.3]} 27... Nc4
{[%clk 0:00:08.2]} 28. Rd4 {[%clk 0:01:25.3]} 28... Rb8 {[%clk 0:00:07.8]} 29.
Bxa6 {[%clk 0:01:22.4]} 29... Na3+ {[%clk 0:00:02.9]} 30. Kc1 {[%clk 0:01:18.4]}
30... Rc8+ {[%clk 0:00:04.1]} 31. Kd1 {[%clk 0:01:17.6]} 31... Rc6 {[%clk
0:00:03.3]} 32. Bd3 {[%clk 0:01:01.6]} 32... Nc4 {[%clk 0:00:02.2]} 33. Bxc4
{[%clk 0:01:01.5]} 33... Bxc4 {[%clk 0:00:04.1]} 34. b3 {[%clk 0:01:02]} 34...
Be6 {[%clk 0:00:05.2]} 35. Kd2 {[%clk 0:01:03]} 35... Ra6 {[%clk 0:00:05.9]} 36.
Ra4 {[%clk 0:00:54.6]} 36... Rd6+ {[%clk 0:00:06.9]} 37. Kc3 {[%clk 0:00:56.1]}
37... Rc6+ {[%clk 0:00:07.9]} 38. Kb2 {[%clk 0:00:56.6]} 38... Rd6 {[%clk
0:00:09]} 39. Rc1 {[%clk 0:00:56.9]} 39... Bf5 {[%clk 0:00:10]} 40. Rac4 {[%clk
0:00:57.4]} 40... Rd2+ {[%clk 0:00:09.9]} 41. R1c2 {[%clk 0:00:57.7]} 41... Bxc2
{[%clk 0:00:10.7]} 42. Rxc2 {[%clk 0:00:57.8]} 42... Rd1 {[%clk 0:00:12.2]} 43.
a4 {[%clk 0:00:58.8]} 43... Rg1 {[%clk 0:00:10.2]} 44. g3 {[%clk 0:00:58.7]}
44... Kf6 {[%clk 0:00:11.2]} 45. b4 {[%clk 0:00:59.2]} 45... Re1 {[%clk
0:00:11.5]} 46. b5 {[%clk 0:00:59.9]} 46... Ke7 {[%clk 0:00:10.8]} 47. Ka3
{[%clk 0:01:01]} 47... Re2 {[%clk 0:00:09.9]} 48. Rxe2+ {[%clk 0:01:01.2]} 1-0

[Event "*** Titled Tuesday Blitz"]
[Site "Chess.com"]
[Date "2019.09.03"]
[Round "10"]
[White "13MiRacLe"]
[Black "Kildepiotr"]
[Result "0-1"]
[WhiteElo "2675"]
[BlackElo "2548"]
[TimeControl "180+2"]
[EndTime "17:20:12 PDT"]
[Termination "Kildepiotr won by checkmate"]

1. e4 {[%clk 0:03:01.9]} 1... g6 {[%clk 0:03:00.5]} 2. d4 {[%clk 0:03:02.7]}
2... Bg7 {[%clk 0:03:02]} 3. Nc3 {[%clk 0:03:04.1]} 3... c6 {[%clk 0:03:02.7]}
4. Bc4 {[%clk 0:03:04.2]} 4... b5 {[%clk 0:03:03.1]} 5. Bb3 {[%clk 0:03:04.9]}
5... b4 {[%clk 0:03:04.5]} 6. Nce2 {[%clk 0:03:05.9]} 6... d5 {[%clk 0:03:05.4]}
7. exd5 {[%clk 0:03:05.4]} 7... cxd5 {[%clk 0:03:06.9]} 8. Nf3 {[%clk
0:03:06.1]} 8... Nf6 {[%clk 0:03:06.9]} 9. O-O {[%clk 0:03:06.3]} 9... O-O
{[%clk 0:03:08.5]} 10. Ne5 {[%clk 0:03:05.6]} 10... Bb7 {[%clk 0:03:06.7]} 11.
a3 {[%clk 0:03:06]} 11... a5 {[%clk 0:02:48.1]} 12. axb4 {[%clk 0:03:05.9]}
12... axb4 {[%clk 0:02:48.7]} 13. Bf4 {[%clk 0:03:04.4]} 13... Qb6 {[%clk
0:02:42.5]} 14. Rxa8 {[%clk 0:02:33.3]} 14... Bxa8 {[%clk 0:02:42.9]} 15. Nd3
{[%clk 0:02:31.3]} 15... Nc6 {[%clk 0:02:39.6]} 16. Nc5 {[%clk 0:02:24.8]} 16...
e6 {[%clk 0:02:36.6]} 17. Qd3 {[%clk 0:02:13.1]} 17... Bb7 {[%clk 0:02:09.1]}
18. Nxb7 {[%clk 0:02:08.5]} 18... Qxb7 {[%clk 0:02:10.1]} 19. Ba4 {[%clk
0:02:10.2]} 19... Ra8 {[%clk 0:01:54.9]} 20. b3 {[%clk 0:01:57.7]} 20... Bf8
{[%clk 0:01:43.5]} 21. c3 {[%clk 0:01:27.6]} 21... bxc3 {[%clk 0:01:42.6]} 22.
Qxc3 {[%clk 0:01:27.2]} 22... Nb4 {[%clk 0:01:36.2]} 23. f3 {[%clk 0:01:12.2]}
23... Rc8 {[%clk 0:01:27.3]} 24. Qe3 {[%clk 0:01:07]} 24... Rc2 {[%clk
0:01:20.9]} 25. Rc1 {[%clk 0:01:07.1]} 25... Rxc1+ {[%clk 0:01:15.3]} 26. Qxc1
{[%clk 0:01:01.1]} 26... Nd3 {[%clk 0:01:14.6]} 27. Qe3 {[%clk 0:01:00.6]} 27...
Nxf4 {[%clk 0:01:13.9]} 28. Nxf4 {[%clk 0:01:02]} 28... Bh6 {[%clk 0:01:11.5]}
29. Qe5 {[%clk 0:00:48.1]} 29... Bg7 {[%clk 0:01:11.9]} 30. Qd6 {[%clk
0:00:40.5]} 30... Qc8 {[%clk 0:01:04.6]} 31. h4 {[%clk 0:00:31.6]} 31... Ne8
{[%clk 0:01:00.2]} 32. Qe7 {[%clk 0:00:15.1]} 32... Qc1+ {[%clk 0:00:42.6]} 33.
Kf2 {[%clk 0:00:09.7]} 33... Bxd4+ {[%clk 0:00:42.9]} 34. Kg3 {[%clk 0:00:11.1]}
34... Qe1+ {[%clk 0:00:42.1]} 35. Kh3 {[%clk 0:00:08.7]} 35... Nf6 {[%clk
0:00:31.3]} 36. Be8 {[%clk 0:00:06.6]} 36... Nxe8 {[%clk 0:00:21.3]} 37. Qxe8+
{[%clk 0:00:08.5]} 37... Kg7 {[%clk 0:00:22.3]} 38. Qa4 {[%clk 0:00:08]} 38...
Bf2 {[%clk 0:00:19.1]} 39. Qd7 {[%clk 0:00:02.2]} 39... Qh1+ {[%clk 0:00:18.8]}
40. Kg4 {[%clk 0:00:03.7]} 40... Qxh4# {[%clk 0:00:19.6]} 0-1